fUSD/lending_fUSD_20241101
["ID","MTS","AMOUNT","RATE_DAILY","PERIOD"]
[341163220,1730493046857,-151.0,0.00038575,120]
[341163222,1730493046867,-198.15588934,0.00038914,2]
[341163224,1730493046876,-7597.75933709,0.00038914,2]
[341163226,1730493046885,-800.0,0.00039,2]
[341163228,1730493046895,-640.0,0.00039067,2]
[341163230,1730493046904,-153.0,0.00039184,2]
[341163232,1730493046913,-153.0,0.00039184,2]
[341163234,1730493046922,-153.0,0.00039184,2]
[341163235,1730493046931,-153.0,0.00039184,2]
[341163236,1730493046940,-153.0,0.00039184,2]
[341163237,1730493046949,-153.0,0.00039184,2]
[341163238,1730493046958,-153.0,0.00039184,2]
[341163239,1730493046980,-153.0,0.00039184,2]
[341163240,1730493046989,-153.0,0.00039184,2]
[341163241,1730493046998,-153.0,0.00039184,2]
[341163242,1730493047008,-153.0,0.00039184,2]
[341163243,1730493047018,-153.0,0.00039184,2]
[341163244,1730493047027,-153.0,0.00039184,2]
[341163245,1730493047035,-153.0,0.00039184,2]
[341163246,1730493047044,-153.0,0.00039184,2]
[341163247,1730493047056,-153.0,0.00039184,2]
[341163248,1730493047068,-153.0,0.00039184,2]
[341163249,1730493047081,-160.98,0.00039292,2]
[341163250,1730493047092,-166.89,0.00039506,2]
[341163251,1730493047104,-1058.37948028,0.00039755,15]
[341163252,1730493047115,-159.67074657,0.0003999,2]
[341163253,1730493047125,-10702.76908138,0.0004,120]
[341163254,1730493047135,-561.46657876,0.0004,2]
[341163255,1730493047148,-571.32524304,0.0004,2]
[341163257,1730493235027,157.53,0.00015342,2]
[341163260,1730493317954,250.0,0.00017,2]
[341163261,1730493319012,300.0,0.00019,2]
[341163263,1730493820672,158.11,0.00015342,2]
[341163315,1730494231546,-350.0,0.00021,2]
[341163316,1730494231556,-718.85964973,0.00024735,2]
[341163317,1730494231566,-392.31825,0.0003,2]
[341163318,1730494231576,-78.78730213,0.00034375,2]
[341163319,1730494231588,-406.46096392,0.00034375,2]
[341163320,1730494231652,-1318.40969395,0.00034375,2]
[341163321,1730494231662,-150.0,0.00034548,10]
[341163322,1730494231671,-699.82069005,0.00034756,2]
[341163323,1730494231683,-1096.57360995,0.00034756,2]
[341163324,1730494231692,-392.31825,0.00034856,2]
[341163325,1730494231702,-150.99,0.00034856,2]
[341163326,1730494231711,-999.99,0.00034856,2]
[341163327,1730494231721,-196.66,0.00035697,2]
[341163328,1730494231730,-717.99,0.00035866,2]
[341163329,1730494231741,-756.50654993,0.00035866,2]
[341163330,1730494231752,-1819.37057671,0.00035866,2]
[341163331,1730494231771,-736.06201724,0.00035866,2]
[341163379,1730494237482,-699.71368841,0.00035866,2]
[341163381,1730494237495,-1800.83630289,0.00035866,2]
[341163382,1730494237599,-694.83,0.00035866,2]
[341163383,1730494237610,-299.58797889,0.00035866,2]
[341163384,1730494237623,-50.97288593,0.00035866,2]
[341163385,1730494237632,-1169.81329438,0.00036512,2]
[341163386,1730494237644,-447.45670562,0.00036512,2]
[341163387,1730494237653,-156.468,0.0003672,2]
[341163388,1730494237662,-150.0,0.00036959,2]
[341163389,1730494237672,-1719.14975068,0.0003698,2]
[341163390,1730494237706,-720.62291816,0.0003698,2]
[341163391,1730494237819,-1371.89733116,0.0003698,2]
[341163392,1730494237829,-436.4904246,0.000372,2]
[341163547,1730494239609,-464.8464168,0.000372,2]
[341163550,1730494239621,-327.6631586,0.000372,2]
[341163551,1730494239631,-303.64184139,0.00037346,2]
[341163553,1730494239643,-660.88815861,0.00037346,2]
[341163556,1730494239655,-900.0,0.0003736,2]
[341163558,1730494239664,-250.0,0.00037395,2]
[341163559,1730494239673,-3301.51,0.0003743,2]
[341163561,1730494239682,-150.0,0.00037468,7]
[341163563,1730494239691,-738.09,0.00037476,2]
[341163565,1730494239700,-181.47,0.00037513,2]
[341163566,1730494239710,-288.0,0.00037531,2]
[341163568,1730494239719,-764.02,0.00037559,2]
[341163569,1730494239729,-4102.19,0.00037585,2]
[341163571,1730494239739,-3011.64,0.00037614,2]
[341163573,1730494239748,-532.44,0.00037659,2]
[341163575,1730494239758,-156.446,0.0003774,14]
[341163577,1730494239769,-326.04,0.00037759,2]
[341163579,1730494239780,-239.26,0.0003777,2]
[341163581,1730494239790,-3385.02,0.00037784,2]
[341163582,1730494239799,-200.0,0.00037871,2]
[341163584,1730494239808,-155.828,0.00037871,2]
[341163586,1730494239817,-155.828,0.00037871,2]
[341163588,1730494239827,-155.828,0.00037871,2]
[341163589,1730494239836,-155.828,0.00037871,2]
[341163591,1730494239846,-3096.68,0.00037951,2]
[341163593,1730494239855,-717.99,0.0003813,2]
[341163594,1730494239864,-1878.1696,0.00038289,2]
[341163596,1730494239873,-17596.78103387,0.00038356,2]
[341163598,1730494239885,-3248.55256025,0.00038356,2]
[341163673,1730494242498,-155.828,0.00037871,2]
[341163674,1730494242508,-155.828,0.00037871,2]
[341163675,1730494242517,-155.828,0.00037871,2]
[341163676,1730494242526,-155.828,0.00037871,2]
[341163677,1730494242536,-4394.001864,0.00038356,2]
[341163678,1730494242547,-934.53108675,0.00038356,2]
[341163679,1730494242558,-2240.96889054,0.00038356,2]
[341163680,1730494242717,-177587.39456459,0.00038356,2]
[341163681,1730494242727,-500.0,0.00038581,2]
[341163682,1730494242736,-23900.0,0.00038598,2]
[341163683,1730494242746,-196.28,0.00038754,2]
[341163684,1730494242755,-156.889,0.0003876,15]
[341163685,1730494242765,-29267.70117491,0.0003888,2]
[341163686,1730494242774,-740.86563625,0.00038897,15]
[341163687,1730494242783,-173.15732877,0.00038897,2]
[341163688,1730494242793,-250.0,0.00038941,2]
[341163689,1730494242803,-500.0,0.00038973,2]
[341163690,1730494242814,-176.0,0.00038973,2]
[341163691,1730494242824,-459.4,0.00039014,2]
[341163692,1730494242834,-153.0,0.00039085,2]
[341163693,1730494242843,-153.0,0.00039085,2]
[341163694,1730494242852,-153.0,0.00039085,2]
[341163695,1730494242861,-200.0,0.00039194,2]
[341163696,1730494242871,-150.0,0.00039452,2]
[341163697,1730494242885,-150.0,0.00039452,2]
[341163698,1730494242894,-150.0,0.00039452,2]
[341163699,1730494242904,-150.0,0.00039452,2]
[341163700,1730494242914,-150.0,0.00039452,2]
[341163701,1730494242923,-161.44,0.00039452,2]
[341163703,1730494242932,-156.417,0.0003949,2]
[341163704,1730494242941,-196.66,0.00039712,2]
[341163707,1730494242950,-19224.82687243,0.00039786,3]
[341163710,1730494242960,-1661.69139809,0.00039791,3]
[341163711,1730494242969,-166.88,0.00039793,2]
[341163712,1730494242979,-68163.028078,0.00039811,3]
[341163713,1730494242989,-1163.18397865,0.0003982,3]
[341163714,1730494242998,-19224.82687243,0.00039825,3]
[341163715,1730494243008,-19224.82687243,0.00039836,3]
[341163717,1730494243017,-19224.82687243,0.00039852,3]
[341163719,1730494243027,-68163.028078,0.00039858,3]
[341163721,1730494243036,-1914.2072326,0.00039883,3]
[341163723,1730494243046,-68163.028078,0.00039884,3]
[341163725,1730494243056,-567.44511347,0.00039925,3]
[341163727,1730494243067,-68163.028078,0.00039954,3]
[341163729,1730494243076,-502.26114535,0.00039973,5]
[341163731,1730494243086,-297.28720942,0.00039999,2]
[341163733,1730494243095,-181.96976882,0.00039999,56]
[341163735,1730494243105,-810.63587639,0.00039999,3]
[341163737,1730494243116,-70939.05459491,0.0004,2]
[341163738,1730494243125,-55044.87048801,0.0004,2]
[341163739,1730494243138,-6012.58863865,0.0004,2]
[341163740,1730494243148,-5142.10681827,0.0004,30]
[341163741,1730494243157,-11937.47450918,0.0004,4]
[341163742,1730494243167,-275.53591638,0.0004,30]
[341163743,1730494243177,-1295.07731908,0.0004,5]
[341163744,1730494243186,-209.37637704,0.0004,2]
[341163745,1730494243196,-4310.0,0.0004,60]
[341163746,1730494243205,-2000.0,0.0004,7]
[341163747,1730494243215,-200.0,0.0004,7]
[341163748,1730494243224,-200.0,0.0004,7]
[341163749,1730494243234,-151.0,0.0004,14]
[341163750,1730494243246,-263.823766,0.0004,14]
[341163751,1730494243255,-173.212451,0.0004,14]
[341163752,1730494243265,-173.212451,0.0004,14]
[341163753,1730494243275,-12886.8746607,0.00040032,2]
[341163754,1730494243284,-211.62676545,0.00040032,30]
[341163755,1730494243294,-712.0,0.00040216,2]
[341163756,1730494243304,-717.99,0.00040394,2]
[341163757,1730494243313,-200.0,0.000404,7]
[341163758,1730494243323,-740.86563619,0.00040675,15]
[341163759,1730494243332,-151.0,0.00040947,14]
[341163760,1730494243341,-151.0,0.00040947,14]
[341163761,1730494243351,-196.514776,0.00040947,14]
[341163762,1730494243360,-151.0,0.00040947,14]
[341163763,1730494243369,-45477.0,0.00040948,2]
[341163764,1730494243379,-372.08,0.00041096,2]
[341163765,1730494243388,-361.12,0.00041096,2]
[341163766,1730494243398,-361.12,0.00041096,2]
[341163767,1730494243408,-361.12,0.00041096,2]
[341163768,1730494243417,-361.12,0.00041096,2]
[341163769,1730494243532,-361.12,0.00041096,2]
[341163770,1730494243562,-300.0,0.00041096,2]
[341163771,1730494243572,-197.86239867,0.000411,2]
[341163772,1730494243581,-151.0,0.00041362,14]
[341163773,1730494243592,-151.0,0.00041362,14]
[341163774,1730494243602,-151.0,0.00041362,14]
[341163775,1730494243611,-151.0,0.00041362,14]
[341163776,1730494243620,-1005.67999034,0.00041679,120]
[341163777,1730494243631,-151.1,0.00041769,2]
[341163778,1730494243641,-208.21429079,0.00041769,2]
[341163779,1730494243650,-5475.00566488,0.00041778,3]
[341163780,1730494243659,-25635.7632701,0.00041778,3]
[341163783,1730494245553,-49157.88057463,0.00041778,3]
[341163785,1730494317501,157.57,0.00015342,2]
[341163788,1730494818977,156.78,0.00015342,2]
[341163790,1730495122504,250.0,0.00017,2]
[341163803,1730495431682,-335.3605,0.0003,2]
[341163805,1730495431693,-480.983,0.0003,2]
[341163807,1730495431702,-158.04400634,0.00034445,2]
[341163809,1730495431711,-480.983,0.00034546,2]
[341163811,1730495431720,-451.79579419,0.00036969,2]
[341163812,1730495431730,-2082.40580545,0.00036969,2]
[341163813,1730495431740,-2052.09,0.00037069,2]
[341163814,1730495431749,-474.0,0.000373,2]
[341163815,1730495431759,-682.34,0.00037709,2]
[341163816,1730495431768,-169.35,0.00038964,2]
[341163817,1730495431777,-153.0,0.0003909,2]
[341163818,1730495431790,-769.6,0.00039495,2]
[341163819,1730495431800,-250.0,0.00039523,2]
[341163820,1730495431809,-286.8619,0.00039565,2]
[341163821,1730495431818,-157.56,0.00039603,2]
[341163822,1730495431827,-1046.11,0.00039639,2]
[341163823,1730495431837,-365.47,0.00039651,2]
[341163824,1730495431847,-250.0,0.00039651,120]
[341163825,1730495431856,-9556.21257081,0.00039665,2]
[341163826,1730495431867,-4691.49991159,0.00039665,2]
[341163827,1730495431881,-2087.78903,0.00039665,2]
[341163828,1730495431903,-1337.15,0.00039665,2]
[341163829,1730495431914,-1464.08839971,0.00039665,2]
[341164006,1730495437624,-1421.55673375,0.00039665,2]
[341164010,1730495437681,-2105.15940939,0.00039665,2]
[341164011,1730495438012,-1236.54394475,0.00039665,2]
[341164012,1730495438024,-150.0,0.0003968,7]
[341164013,1730495438033,-192.09525672,0.00039686,2]
[341164020,1730495440109,-387.04474328,0.00039686,2]
[341164021,1730495440118,-200.0,0.00039696,2]
[341164022,1730495440127,-43.56025672,0.00039718,2]
[341164024,1730495445644,-206.43974328,0.00039718,2]
[341164025,1730495445654,-161.6,0.00039732,2]
[341164026,1730495445664,-230.4,0.00039758,2]
[341164027,1730495445674,-150.0,0.00039813,4]
[341164028,1730495445683,-1695.37,0.00039813,2]
[341164029,1730495445693,-760.04,0.00039863,2]
[341164030,1730495445703,-760.04,0.00039863,2]
[341164031,1730495445712,-760.04,0.00039863,2]
[341164032,1730495445721,-760.04,0.00039863,2]
[341164033,1730495445730,-760.04,0.00039863,2]
[341164034,1730495445740,-1127.6739,0.00039888,7]
[341164035,1730495445749,-190.07,0.00039893,2]
[341164036,1730495445758,-157.88,0.00039909,120]
[341164037,1730495445769,-151.91,0.00039968,120]
[341164038,1730495445779,-682.34,0.00039973,2]
[341164039,1730495445789,-159.18,0.00040252,2]
[341164040,1730495445799,-361.12,0.00040274,2]
[341164041,1730495445808,-361.12,0.00040274,2]
[341164042,1730495445818,-361.12,0.00040274,2]
[341164043,1730495445827,-361.12,0.00040274,2]
[341164044,1730495445837,-361.12,0.00040274,2]
[341164045,1730495445847,-361.12,0.00040274,2]
[341164046,1730495445856,-361.12,0.00040274,2]
[341164047,1730495445866,-409.68226378,0.0004065,5]
[341164048,1730495445875,-500.0,0.0004072,2]
[341164049,1730495445885,-401.88,0.00040822,2]
[341164050,1730495445896,-760.04,0.00040822,2]
[341164051,1730495445906,-760.04,0.00040822,2]
[341164052,1730495445916,-760.04,0.00040822,2]
[341164053,1730495445926,-760.04,0.00040822,2]
[341164054,1730495445937,-760.04,0.00040822,2]
[341164055,1730495445946,-760.04,0.00040822,2]
[341164056,1730495445956,-760.04,0.00040822,2]
[341164057,1730495445967,-760.04,0.00040822,2]
[341164058,1730495445976,-760.04,0.00040822,2]
[341164060,1730495445987,-760.04,0.00040822,2]
[341164061,1730495445996,-760.04,0.00040822,2]
[341164062,1730495446006,-760.04,0.00040822,2]
[341164063,1730495446018,-760.04,0.00040822,2]
[341164064,1730495446029,-760.04,0.00040822,2]
[341164066,1730495446039,-760.04,0.00040822,2]
[341164067,1730495446049,-760.04,0.00040822,2]
[341164068,1730495446058,-760.04,0.00040822,2]
[341164069,1730495446067,-461.79,0.00040822,2]
[341164070,1730495446078,-760.04,0.00040841,2]
[341164071,1730495446088,-564.64,0.00040918,2]
[341164072,1730495446098,-3371.0,0.00040918,2]
[341164073,1730495446107,-1791.0,0.00040918,2]
[341164074,1730495446116,-3018.0,0.00040918,2]
[341164075,1730495446126,-812.0,0.00040918,2]
[341164076,1730495446135,-1252.0,0.00040918,2]
[341164077,1730495446145,-808.0,0.00040918,2]
[341164078,1730495446154,-585.07,0.00040931,2]
[341164079,1730495446163,-585.07,0.00040952,2]
[341164080,1730495446173,-585.07,0.00040974,2]
[341164081,1730495446183,-361.12,0.00040978,2]
[341164082,1730495446192,-585.07,0.00040995,2]
[341164083,1730495446202,-585.07,0.00041017,2]
[341164084,1730495446211,-585.07,0.00041038,2]
[341164085,1730495446221,-585.07,0.0004106,2]
[341164086,1730495446230,-585.07,0.00041082,2]
[341164087,1730495446240,-297.641,0.00041083,2]
[341164088,1730495446250,-349.04469233,0.00041083,2]
[341164089,1730495446261,-1200.92531856,0.00041083,2]
[341164090,1730495446273,-5913.91798911,0.00041083,2]
[341164091,1730495446282,-931.80333437,0.00041083,2]
[341164092,1730495446302,-156.19666563,0.00041083,2]
[341164093,1730495446312,-157.0,0.00041096,2]
[341164094,1730495446322,-150.59,0.00041096,2]
[341164095,1730495446333,-349.98268349,0.000411,2]
[341164096,1730495446342,-585.07,0.00041103,2]
[341164097,1730495446351,-585.07,0.00041125,2]
[341164098,1730495446361,-585.07,0.00041146,2]
[341164099,1730495446370,-585.07,0.00041168,2]
[341164100,1730495446379,-585.07,0.00041189,2]
[341164101,1730495446388,-585.07,0.00041211,2]
[341164102,1730495446397,-585.07,0.00041232,2]
[341164103,1730495446406,-585.07,0.00041254,2]
[341164104,1730495446415,-1842.42446138,0.0004126,3]
[341164105,1730495446424,-758.95783927,0.00041265,3]
[341164106,1730495446433,-585.07,0.00041275,2]
[341164107,1730495446443,-1555.75857146,0.00041276,3]
[341164108,1730495446452,-1842.42446138,0.0004128,3]
[341164109,1730495446461,-1555.75857146,0.00041286,3]
[341164110,1730495446470,-585.07,0.00041297,2]
[341164111,1730495446479,-57938.5738662,0.00041298,3]
[341164112,1730495446489,-16341.10284156,0.00041303,3]
[341164113,1730495446498,-585.07,0.00041318,2]
[341164114,1730495446507,-359.09148073,0.0004132,3]
[341164115,1730495446520,-399.86635854,0.0004132,3]
[341164116,1730495446529,-78.18734371,0.00041328,3]
[341164117,1730495446540,-939.185648,0.00041328,3]
[341164118,1730495473235,150.0,0.00018123,2]
[341164120,1730495558120,150.0,0.00021,3]
[341164121,1730496017635,159.83,0.00015342,2]
[341164123,1730496066406,179.41,0.00019178,2]
[341164124,1730496308365,154.75,0.00019052,2]
[341164125,1730496308703,83811.4084,0.00016,2]
[341164127,1730496308730,8548.6184,0.00016,2]
[341164128,1730496308755,8705.3984,0.00016,2]
[341164129,1730496308780,8705.3984,0.00016,2]
[341164130,1730496308804,8705.3984,0.00016,2]
[341164131,1730496308828,8705.3984,0.00016,2]
[341164132,1730496308851,8705.3984,0.00016,2]
[341164133,1730496308876,5213.3943852,0.00016,2]
[341164134,1730496308902,266741.93686975,0.00016,2]
[341164152,1730496497177,158.66,0.00015342,2]
[341164158,1730496550225,1500.0,0.00044583,120]
[341164183,1730496632043,-320.5687328,0.0002495,2]
[341164184,1730496632052,-603.96291756,0.00025,2]
[341164185,1730496632061,-918.79095556,0.000264,2]
[341164186,1730496632071,-2054.07169466,0.000299,2]
[341164187,1730496632080,-353.3473217,0.0003,2]
[341164188,1730496632089,-849.20269911,0.0003,2]
[341164189,1730496632098,-8179.54310827,0.0003,2]
[341164190,1730496632108,-6929.5132,0.00033,2]
[341164191,1730496632118,-1830.0,0.000373,2]
[341164192,1730496632128,-1043.81824998,0.000373,2]
[341164193,1730496632137,-10632.13003459,0.000379,2]
[341164194,1730496632146,-655.05,0.00038145,2]
[341164195,1730496632156,-169.35,0.00038544,2]
[341164196,1730496632165,-153.0,0.00038791,2]
[341164197,1730496632175,-153.0,0.00038791,2]
[341164198,1730496632184,-153.0,0.00038791,2]
[341164199,1730496632193,-615.68,0.00039608,2]
[341164200,1730496632203,-523.05,0.00039919,2]
[341164201,1730496632212,-8394.45,0.00039932,63]
[341164202,1730496632222,-250.0,0.00039966,120]
[341164203,1730496632231,-150.0,0.0004,7]
[341164204,1730496632240,-1033.27674142,0.0004,120]
[341164205,1730496632249,-250.0,0.00040003,2]
[341164206,1730496632258,-159.18,0.00040234,2]
[341164207,1730496632267,-23900.0,0.00040295,2]
[341164208,1730496632276,-384.32,0.00040353,2]
[341164209,1730496632285,-172.64,0.00040361,120]
[341164210,1730496632295,-655.05,0.00040409,2]
[341164211,1730496632304,-157.88,0.00040563,120]
[341164212,1730496632314,-500.0,0.000407,2]
[341164213,1730496632326,-760.04,0.00040741,2]
[341164214,1730496632335,-190.07,0.00040756,2]
[341164215,1730496632344,-150.0,0.00041096,2]
[341164216,1730496632353,-150.0,0.00041096,2]
[341164217,1730496632362,-150.0,0.00041096,2]
[341164218,1730496632371,-150.0,0.00041096,2]
[341164219,1730496632381,-150.0,0.00041096,2]
[341164220,1730496632391,-154.97,0.00041096,2]
[341164221,1730496632400,-15323.72984985,0.00041328,3]
[341164222,1730496632410,-151.22070408,0.00041328,7]
[341164223,1730496632419,-16341.10284156,0.00041338,3]
[341164224,1730496632429,-585.07,0.0004134,2]
[341164225,1730496632439,-1842.42446138,0.00041348,3]
[341164226,1730496632448,-758.95783927,0.0004136,3]
[341164227,1730496632458,-1524.7566,0.00041379,2]
[341164228,1730496632467,-2100.828,0.00041379,2]
[341164229,1730496632476,-262.8513,0.00041379,2]
[341164230,1730496632486,-486.778,0.00041379,2]
[341164231,1730496632495,-57938.5738662,0.00041397,3]
[341164232,1730496632505,-1555.75857146,0.00041401,3]
[341164233,1730496632514,-38325.36041572,0.00041416,3]
[341164234,1730496632527,-1337.0863728,0.00041416,3]
[341164235,1730496632539,-2613.19812,0.00041416,3]
[341164236,1730496632554,-1198.16775,0.00041416,3]
[341164237,1730496632565,-1737.5141828,0.00041416,3]
[341164238,1730496632577,-3325.54431693,0.00041416,3]
[341164239,1730496632588,-1650.45501,0.00041416,3]
[341164250,1730496638001,-7751.24769795,0.00041416,3]
[341164251,1730496638012,-57938.5738662,0.00041435,3]
[341164252,1730496638022,-1842.42446138,0.00041442,3]
[341164253,1730496638033,-758.95783927,0.00041444,3]
[341164254,1730496638042,-486.0334,0.00041478,2]
[341164255,1730496638052,-737.9506,0.00041478,2]
[341164256,1730496638061,-2500.0,0.00041478,2]
[341164257,1730496638071,-1472.1607,0.00041479,2]
[341164258,1730496638082,-100000.0,0.00041479,2]
[341164259,1730496638093,-9439.0815,0.00041479,2]
[341164260,1730496638103,-310.37692514,0.0004148,2]
[341164261,1730496638112,-670.4533269,0.0004148,120]
[341164262,1730496638122,-16341.10284156,0.00041488,3]
[341164263,1730496638133,-150.110206,0.00041498,120]
[341164264,1730496638144,-1555.75857146,0.00041499,3]
[341164265,1730496638155,-151.11,0.0004157,2]
[341164266,1730496638165,-208.2142908,0.0004157,2]
[341164267,1730496638174,-6078.35942486,0.00041579,30]
[341164268,1730496638184,-500.0,0.00041579,2]
[341164269,1730496638193,-2737.50283244,0.00041579,3]
[341164270,1730496638203,-55605.20970506,0.00041579,3]
[341164283,1730496643933,-293.9,0.00041569,10]
[341164284,1730496643943,-2063.92933058,0.00041579,3]
[341164290,1730496645895,-252.17192,0.00041479,2]
[341164291,1730496646008,-247.82808,0.00041479,2]
[341164292,1730496646018,-3222.2958,0.00041579,3]
[341164293,1730496646068,-69952.29261866,0.00041579,3]
[341164294,1730496646081,-22602.01903386,0.00041579,3]
[341164295,1730496646092,-61999.31933931,0.00041579,3]
[341164296,1730496646105,-12370.03290752,0.00041579,3]
[341164297,1730496646118,-696.46961565,0.00041579,3]
[341164298,1730496646131,-511.4200044,0.00041579,3]
[341164299,1730496646143,-1732.3,0.00041579,3]
[341164303,1730496671052,150.0,0.00018123,2]
[341164304,1730496852482,1500.0,0.00044596,120]
[341164305,1730496924844,250.0,0.00017,2]
[341164306,1730496925920,300.0,0.00019,2]
[341164308,1730497024891,157.75,0.00015342,2]
[341164309,1730497247360,-196.15925,0.0003,2]
[341164310,1730497271882,-196.15925,0.00034028,2]
[341164311,1730497271907,-1764.0,0.00037,2]
[341164312,1730497271930,-589.54,0.00038742,2]
[341164313,1730497271952,-250.0,0.00039683,120]
[341164314,1730497271972,-250.0,0.00039698,2]
[341164315,1730497271992,-261.52,0.00039704,2]
[341164316,1730497272013,-3623.11,0.00039708,2]
[341164317,1730497272032,-1913.5956397,0.00040107,2]
[341164318,1730497272052,-2031.68,0.00040207,2]
[341164319,1730497272073,-1755.71,0.00040225,120]
[341164320,1730497272095,-2031.68,0.00040228,2]
[341164321,1730497272115,-2031.68,0.00040249,2]
[341164322,1730497272136,-2031.68,0.0004027,2]
[341164323,1730497272157,-212.25,0.0004027,120]
[341164324,1730497272178,-2031.68,0.00040292,2]
[341164325,1730497272198,-2031.68,0.00040313,2]
[341164326,1730497272218,-2031.68,0.00040334,2]
[341164327,1730497272238,-2031.68,0.00040355,2]
[341164328,1730497272259,-2031.68,0.00040376,2]
[341164329,1730497272278,-2031.68,0.00040397,2]
[341164330,1730497272298,-6262.6,0.00040404,2]
[341164331,1730497272319,-2031.68,0.00040418,2]
[341164332,1730497272339,-2031.68,0.0004044,2]
[341164333,1730497272364,-2031.68,0.00040461,2]
[341164334,1730497272384,-2031.68,0.00040482,2]
[341164335,1730497272406,-2031.68,0.00040503,2]
[341164336,1730497272426,-2031.68,0.00040524,2]
[341164337,1730497272447,-2031.68,0.00040545,2]
[341164338,1730497272468,-2031.68,0.00040567,2]
[341164339,1730497272490,-507.45,0.00040586,2]
[341164340,1730497272513,-2031.68,0.00040588,2]
[341164341,1730497272535,-2031.68,0.00040609,2]
[341164342,1730497272557,-159.35,0.00040627,120]
[341164343,1730497272579,-589.54,0.00041006,2]
[341164344,1730497272727,-1896.53,0.00041069,2]
[341164345,1730497272752,-431.88,0.00041096,2]
[341164346,1730497272774,-431.88,0.00041096,2]
[341164347,1730497272795,-431.88,0.000411,2]
[341164348,1730497272820,-1322.39478574,0.00041256,3]
[341164349,1730497272843,-645.11416338,0.00041272,3]
[341164350,1730497272865,-592.69250897,0.00041279,15]
[341164351,1730497272889,-352.2727,0.00041279,2]
[341164352,1730497272910,-425.1074,0.0004128,2]
[341164353,1730497272930,-2500.0,0.0004128,2]
[341164354,1730497272952,-49817.37098173,0.00041293,3]
[341164355,1730497272974,-150.110206,0.00041298,120]
[341164356,1730497272995,-812.34,0.00041369,30]
[341164357,1730497273016,-168.118,0.00041378,61]
[341164358,1730497273037,-500.0,0.00041378,31]
[341164359,1730497273056,-500.0,0.00041378,31]
[341164360,1730497273078,-310.37692514,0.00041379,2]
[341164361,1730497273100,-1504.5239,0.00041379,2]
[341164362,1730497273119,-11842.82428934,0.00041379,2]
[341164363,1730497385572,23446.52700797,0.00044598,120]
[341164364,1730497556450,156.61,0.00015342,2]
[341164372,1730497802594,192.11697408,0.00015342,2]
[341164381,1730497835831,-150.0,0.00034548,10]
[341164382,1730497835840,-1587.0,0.000371,2]
[341164383,1730497835850,-530.58,0.00038911,2]
[341164384,1730497835859,-808.710251,0.00040037,2]
[341164385,1730497835870,-250.0,0.00040238,2]
[341164386,1730497835882,-190.08,0.0004032,2]
[341164387,1730497835894,-250.0,0.00040379,120]
[341164388,1730497835904,-594.04,0.0004057,2]
[341164389,1730497835913,-431.88,0.00040578,2]
[341164390,1730497835923,-626.21,0.000406,2]
[341164391,1730497835934,-150.0,0.00040664,7]
[341164392,1730497835944,-1551.31345333,0.000407,2]
[341164395,1730497838218,-6607.87,0.00040133,63]
[341164396,1730497838229,-7221.60996905,0.000407,2]
[341164397,1730497838240,-6905.52,0.000407,2]
[341164472,1730497839988,-7755.89228325,0.000407,2]
[341164474,1730497840104,-465.66429437,0.000407,2]
[341164475,1730497840113,-150.0,0.00041068,2]
[341164476,1730497840122,-150.0,0.00041096,2]
[341164477,1730497840131,-202.94250355,0.00041096,2]
[341164478,1730497840142,-238.50749645,0.00041096,2]